fUST/lending_fUST_20250628
["ID","MTS","AMOUNT","RATE_DAILY","PERIOD"]
[368302947,1751104241342,-460.0,0.00019725,2]
[368302948,1751104241353,-460.0,0.00019726,2]
[368302949,1751104241363,-460.0,0.00019726,2]
[368302950,1751104241374,-460.0,0.00019726,2]
[368302951,1751104241384,-460.0,0.00019726,2]
[368302952,1751104241395,-460.0,0.00019726,2]
[368302953,1751104241406,-460.0,0.00019726,2]
[368302954,1751104241417,-460.0,0.00019726,2]
[368302955,1751104241429,-460.0,0.00019726,2]
[368302956,1751104241441,-644.09,0.00019726,2]
[368302957,1751104241452,-460.0,0.00019726,2]
[368302958,1751104241463,-460.0,0.00019726,2]
[368302959,1751104241474,-438.28632599,0.00019726,2]
[368302960,1751104241485,-460.0,0.00019726,2]
[368302961,1751104241496,-490.46,0.00019726,2]
[368302962,1751104241508,-1087.34,0.00019726,2]
[368302963,1751104241518,-1749.26,0.00019726,2]
[368302964,1751104241528,-481.46,0.00019726,2]
[368302965,1751104241701,-460.0,0.00019726,2]
[368302966,1751104241716,-460.0,0.00019726,2]
[368302967,1751104241726,-460.0,0.00019726,2]
[368302968,1751104241735,-853.9,0.00019726,2]
[368302969,1751104241744,-460.0,0.00019726,2]
[368302970,1751104241754,-460.0,0.00019726,2]
[368302971,1751104241763,-1919.85,0.00019726,2]
[368302972,1751104241772,-166.17,0.00019726,2]
[368302973,1751104241781,-516.71,0.00019726,2]
[368302974,1751104241790,-2052.3,0.00019726,2]
[368302975,1751104241800,-411.83573595,0.00019726,2]
[368302976,1751104241809,-551.56,0.00019726,2]
[368302977,1751104241818,-460.0,0.00019726,2]
[368302978,1751104241827,-1731.5,0.00019726,2]
[368302979,1751104241836,-460.0,0.00019726,2]
[368302980,1751104241846,-460.0,0.00019726,2]
[368302981,1751104241855,-460.0,0.00019726,2]
[368302982,1751104241864,-460.0,0.00019726,2]
[368302983,1751104241873,-460.0,0.00019726,2]
[368302984,1751104241882,-460.0,0.00019726,2]
[368302985,1751104241892,-460.0,0.00019726,2]
[368302986,1751104241900,-460.0,0.00019726,2]
[368302987,1751104241910,-2205.55,0.00019726,2]
[368302988,1751104241919,-460.0,0.00019726,2]
[368302989,1751104241927,-817.34,0.00019726,2]
[368302990,1751104241937,-2719.66,0.00019726,2]
[368302991,1751104241946,-460.0,0.00019726,2]
[368302992,1751104241955,-460.0,0.00019726,2]
[368302993,1751104241966,-474.0,0.00019726,2]
[368302994,1751104241975,-257.61468776,0.00019726,2]
[368302995,1751104241985,-1742.15,0.00019726,2]
[368302996,1751104241994,-1538.5,0.00019726,2]
[368302997,1751104242003,-460.0,0.00019726,2]
[368302998,1751104242012,-460.0,0.00019726,2]
[368302999,1751104242022,-460.0,0.00019726,2]
[368303000,1751104242031,-3171.69,0.00019726,2]
[368303001,1751104242040,-1284.62,0.00019726,2]
[368303002,1751104242050,-460.0,0.00019726,2]
[368303003,1751104242059,-460.0,0.00019726,2]
[368303004,1751104242069,-460.0,0.00019726,2]
[368303005,1751104242078,-841.85,0.00019726,2]
[368303006,1751104242087,-460.0,0.00019726,2]
[368303007,1751104242101,-3929.08,0.00019726,2]
[368303008,1751104242111,-460.0,0.00019726,2]
[368303009,1751104242120,-859.76,0.00019726,2]
[368303010,1751104242130,-460.0,0.00019726,2]
[368303011,1751104242140,-1249.38,0.00019726,2]
[368303012,1751104242150,-1398.58,0.00019726,2]
[368303013,1751104242159,-460.0,0.00019726,2]
[368303014,1751104242169,-460.0,0.00019726,2]
[368303015,1751104242179,-1240.77,0.00019726,2]
[368303016,1751104242190,-460.0,0.00019726,2]
[368303017,1751104242199,-1289.3,0.00019726,2]
[368303018,1751104242209,-427.84153915,0.00019726,2]
[368303019,1751104242219,-419.75773258,0.00019726,2]
[368303020,1751104242228,-767.03,0.00019726,2]
[368303021,1751104242238,-295.1684036,0.00019732,2]
[368303022,1751104242247,-500.0,0.000198,2]
[368303023,1751104242256,-814.0,0.00019808,2]
[368303024,1751104242266,-500.0,0.00019814,2]
[368303025,1751104242276,-500.0,0.00019832,2]
[368303026,1751104242285,-500.0,0.00019832,2]
[368303027,1751104242294,-500.0,0.00019832,2]
[368303028,1751104242304,-814.0,0.00019835,2]
[368303029,1751104242313,-814.0,0.00019863,2]
[368303030,1751104242322,-814.0,0.0001989,2]
[368303031,1751104242331,-7889.39496744,0.000199,2]
[368303032,1751104242340,-814.0,0.00019918,2]
[368303033,1751104242349,-509.68531918,0.00019939,2]
[368303034,1751104242358,-500.0,0.00019939,2]
[368303035,1751104242367,-500.0,0.00019939,2]
[368303036,1751104242377,-501.47527516,0.00019939,2]
[368303037,1751104242386,-814.0,0.00019945,2]
[368303038,1751104242395,-814.0,0.00019972,2]
[368303039,1751104242404,-727.6,0.00019999,2]
[368303040,1751104242413,-589.67,0.00019999,2]
[368303041,1751104242423,-460.0,0.00019999,2]
[368303042,1751104242432,-460.0,0.00019999,2]
[368303043,1751104242441,-814.0,0.0002,2]
[368303044,1751104242450,-460.0,0.0002,2]
[368303045,1751104242459,-460.0,0.0002,2]
[368303046,1751104242469,-460.0,0.0002,2]
[368303047,1751104242478,-460.0,0.0002,2]
[368303048,1751104242488,-460.0,0.0002,2]
[368303049,1751104242497,-460.0,0.0002,2]
[368303050,1751104242506,-460.0,0.0002,2]
[368303051,1751104242516,-460.0,0.0002,2]
[368303052,1751104242525,-644.09,0.0002,2]
[368303053,1751104242535,-460.0,0.0002,2]
[368303054,1751104242546,-160.0,0.0002,3]
[368303055,1751104242556,-460.0,0.0002,2]
[368303056,1751104242565,-460.0,0.0002,2]
[368303057,1751104242575,-490.46,0.0002,2]
[368303058,1751104242584,-1087.34,0.0002,2]
[368303059,1751104242594,-1749.26,0.0002,2]
[368303060,1751104242604,-481.46,0.0002,2]
[368303061,1751104242613,-460.0,0.0002,2]
[368303062,1751104242622,-460.0,0.0002,2]
[368303063,1751104242632,-460.0,0.0002,2]
[368303064,1751104242641,-853.9,0.0002,2]
[368303065,1751104242650,-460.0,0.0002,2]
[368303066,1751104242661,-460.0,0.0002,2]
[368303067,1751104242672,-1919.85,0.0002,2]
[368303068,1751104242682,-516.71,0.0002,2]
[368303069,1751104242691,-2052.3,0.0002,2]
[368303070,1751104242701,-551.56,0.0002,2]
[368303071,1751104242711,-460.0,0.0002,2]
[368303072,1751104242721,-1731.5,0.0002,2]
[368303073,1751104242731,-460.0,0.0002,2]
[368303074,1751104242742,-460.0,0.0002,2]
[368303075,1751104242753,-460.0,0.0002,2]
[368303076,1751104242763,-460.0,0.0002,2]
[368303077,1751104242772,-460.0,0.0002,2]
[368303078,1751104242782,-460.0,0.0002,2]
[368303079,1751104242791,-460.0,0.0002,2]
[368303080,1751104242800,-460.0,0.0002,2]
[368303081,1751104242810,-2205.55,0.0002,2]
[368303082,1751104242819,-460.0,0.0002,2]
[368303083,1751104242828,-817.34,0.0002,2]
[368303084,1751104242838,-2719.66,0.0002,2]
[368303085,1751104242847,-460.0,0.0002,2]
[368303086,1751104242857,-460.0,0.0002,2]
[368303087,1751104242866,-474.0,0.0002,2]
[368303088,1751104242875,-1742.15,0.0002,2]
[368303089,1751104242885,-1538.5,0.0002,2]
[368303090,1751104242894,-460.0,0.0002,2]
[368303091,1751104242903,-460.0,0.0002,2]
[368303092,1751104242912,-3171.69,0.0002,2]
[368303093,1751104242922,-1284.62,0.0002,2]
[368303094,1751104242931,-460.0,0.0002,2]
[368303095,1751104242940,-460.0,0.0002,2]
[368303096,1751104242950,-460.0,0.0002,2]
[368303097,1751104242959,-841.85,0.0002,2]
[368303098,1751104242968,-460.0,0.0002,2]
[368303099,1751104242978,-3929.08,0.0002,2]
[368303100,1751104242987,-460.0,0.0002,2]
[368303101,1751104242997,-859.76,0.0002,2]
[368303102,1751104243006,-460.0,0.0002,2]
[368303103,1751104243016,-1249.38,0.0002,2]
[368303104,1751104243026,-1398.58,0.0002,2]
[368303105,1751104243035,-460.0,0.0002,2]
[368303106,1751104243046,-460.0,0.0002,2]
[368303107,1751104243055,-1240.77,0.0002,2]
[368303108,1751104243065,-460.0,0.0002,2]
[368303109,1751104243075,-1289.3,0.0002,2]
[368303110,1751104243085,-767.03,0.0002,2]
[368303111,1751104243096,-814.0,0.00020027,2]
[368303112,1751104243107,-500.0,0.00020033,2]
[368303113,1751104243116,-500.0,0.00020046,2]
[368303114,1751104243126,-814.0,0.00020055,2]
[368303115,1751104243135,-500.0,0.00020065,2]
[368303116,1751104243145,-500.97448561,0.00020065,2]
[368303117,1751104243155,-814.0,0.00020082,2]
[368303118,1751104243164,-7889.39496715,0.00020107,2]
[368303119,1751104243174,-814.0,0.00020109,2]
[368303120,1751104243183,-213.78848551,0.00020132,2]
[368303121,1751104243193,-12564.78152626,0.00020132,2]
[368303122,1751104243202,-160.0,0.00020132,2]
[368303123,1751104243212,-837.06984471,0.00020132,2]
[368303124,1751104243221,-847.18566335,0.00020132,2]
[368303125,1751104243230,-160.0,0.00020132,2]
[368303126,1751104243240,-160.0,0.00020132,2]
[368303127,1751104243249,-230.28494567,0.00020132,2]
[368303129,1751104243258,-160.0,0.00020132,2]
[368303130,1751104243267,-214.95397287,0.00020132,2]
[368303131,1751104243276,-160.0,0.00020132,2]
[368303132,1751104243286,-160.0,0.00020132,2]
[368303133,1751104243296,-814.0,0.00020137,2]
[368303134,1751104243306,-1000.0,0.00020164,2]
[368303135,1751104243316,-380.0,0.00020164,2]
[368303136,1751104243326,-814.0,0.00020164,2]
[368303137,1751104243335,-285.076321,0.00020187,2]
[368303138,1751104243345,-814.0,0.00020192,2]
[368303139,1751104243355,-420.0,0.00020193,2]
[368303140,1751104243365,-287.1658826,0.00020214,2]
[368303141,1751104243374,-500.0,0.00020214,2]
[368303142,1751104243383,-814.0,0.00020219,2]
[368303143,1751104243392,-814.0,0.00020246,2]
[368303145,1751104243401,-460.0,0.00020273,2]
[368303147,1751104243410,-460.0,0.00020273,2]
[368303148,1751104243420,-460.0,0.00020273,2]
[368303149,1751104243429,-460.0,0.00020273,2]
[368303150,1751104243438,-460.0,0.00020273,2]
[368303152,1751104243448,-460.0,0.00020273,2]
[368303153,1751104243457,-460.0,0.00020273,2]
[368303154,1751104243466,-460.0,0.00020273,2]
[368303155,1751104243476,-644.09,0.00020273,2]
[368303156,1751104243487,-460.0,0.00020273,2]
[368303157,1751104243496,-460.0,0.00020273,2]
[368303159,1751104243505,-460.0,0.00020273,2]
[368303160,1751104243515,-490.46,0.00020273,2]
[368303161,1751104243524,-1087.34,0.00020273,2]
[368303162,1751104243533,-1749.26,0.00020273,2]
[368303163,1751104243543,-481.46,0.00020273,2]
[368303164,1751104243552,-460.0,0.00020273,2]
[368303165,1751104243561,-460.0,0.00020273,2]
[368303166,1751104243571,-460.0,0.00020273,2]
[368303167,1751104243580,-853.9,0.00020273,2]
[368303168,1751104243590,-460.0,0.00020273,2]
[368303169,1751104243600,-460.0,0.00020273,2]
[368303170,1751104243610,-1919.85,0.00020273,2]
[368303171,1751104243620,-516.71,0.00020273,2]
[368303172,1751104243630,-727.6,0.00020273,2]
[368303174,1751104243639,-2052.3,0.00020273,2]
[368303176,1751104243649,-551.56,0.00020273,2]
[368303177,1751104243658,-460.0,0.00020273,2]
[368303178,1751104243669,-1731.5,0.00020273,2]
[368303179,1751104243678,-460.0,0.00020273,2]
[368303180,1751104243688,-460.0,0.00020273,2]
[368303181,1751104243698,-460.0,0.00020273,2]
[368303182,1751104243708,-460.0,0.00020273,2]
[368303184,1751104243717,-460.0,0.00020273,2]
[368303185,1751104243726,-460.0,0.00020273,2]
[368303186,1751104243735,-460.0,0.00020273,2]
[368303187,1751104243745,-460.0,0.00020273,2]
[368303188,1751104243754,-2205.55,0.00020273,2]
[368303189,1751104243763,-460.0,0.00020273,2]
[368303190,1751104243773,-589.67,0.00020273,2]
[368303191,1751104243782,-817.34,0.00020273,2]
[368303192,1751104243792,-460.0,0.00020273,2]
[368303193,1751104243801,-2719.66,0.00020273,2]
[368303194,1751104243812,-460.0,0.00020273,2]
[368303195,1751104243821,-460.0,0.00020273,2]
[368303196,1751104243831,-474.0,0.00020273,2]
[368303198,1751104243840,-1742.15,0.00020273,2]
[368303199,1751104243849,-1538.5,0.00020273,2]
[368303200,1751104243859,-460.0,0.00020273,2]
[368303201,1751104243868,-460.0,0.00020273,2]
[368303202,1751104243877,-3171.69,0.00020273,2]
[368303203,1751104243886,-1284.62,0.00020273,2]
[368303204,1751104243895,-460.0,0.00020273,2]
[368303205,1751104243909,-460.0,0.00020273,2]
[368303206,1751104243918,-460.0,0.00020273,2]
[368303207,1751104243927,-460.0,0.00020273,2]
[368303208,1751104243936,-841.85,0.00020273,2]
[368303210,1751104243946,-460.0,0.00020273,2]
[368303212,1751104243956,-3929.08,0.00020273,2]
[368303214,1751104243966,-460.0,0.00020273,2]
[368303215,1751104243975,-859.76,0.00020273,2]
[368303216,1751104243984,-460.0,0.00020273,2]
[368303217,1751104243994,-1249.38,0.00020273,2]
[368303218,1751104244004,-1398.58,0.00020273,2]
[368303219,1751104244014,-460.0,0.00020273,2]
[368303220,1751104244023,-1240.77,0.00020273,2]
[368303221,1751104244033,-460.0,0.00020273,2]
[368303222,1751104244043,-1289.3,0.00020273,2]
[368303223,1751104244056,-767.03,0.00020273,2]
[368303224,1751104244065,-814.0,0.00020274,2]
[368303225,1751104244075,-814.0,0.00020301,2]
[368303226,1751104244084,-7889.39496715,0.00020314,3]
[368303227,1751104244095,-422.0,0.00020316,2]
[368303228,1751104244108,-814.0,0.00020329,2]
[368303229,1751104244118,-1000.0,0.00020348,2]
[368303230,1751104244127,-814.0,0.00020356,2]
[368303231,1751104244137,-288.66192114,0.0002038,2]
[368303232,1751104244146,-512.10269403,0.0002038,2]
[368303233,1751104244156,-226.77747217,0.0002038,2]
[368303234,1751104244166,-814.0,0.00020383,2]
[368303235,1751104244176,-814.0,0.00020411,2]
[368303236,1751104244185,-300.0,0.00020427,2]
[368303237,1751104244195,-824.62538489,0.00020438,2]
[368303238,1751104244206,-160.0,0.00020459,3]
[368303239,1751104244215,-422.0,0.0002049,2]
[368303240,1751104244225,-160.0,0.00020521,3]
[368303241,1751104244234,-847.18566335,0.00020521,3]
[368303242,1751104244244,-12564.78152626,0.00020521,3]
[368303243,1751104244253,-213.78848551,0.00020521,3]
[368303244,1751104244262,-7889.39496715,0.00020521,3]
[368303245,1751104244271,-460.0,0.00020547,2]
[368303246,1751104244281,-460.0,0.00020547,2]
[368303247,1751104244290,-500.0,0.00020547,14]
[368303248,1751104244300,-233.72015984,0.00020547,2]
[368303249,1751104244309,-460.0,0.00020547,2]
[368303250,1751104244318,-460.0,0.00020547,2]
[368303251,1751104244327,-460.0,0.00020547,2]
[368303252,1751104244336,-644.09,0.00020547,2]
[368303253,1751104244346,-460.0,0.00020547,2]
[368303254,1751104244355,-460.0,0.00020547,2]
[368303255,1751104244364,-460.0,0.00020547,2]
[368303256,1751104244374,-490.46,0.00020547,2]
[368303257,1751104244383,-1087.34,0.00020547,2]
[368303258,1751104244392,-1749.26,0.00020547,2]
[368303259,1751104244401,-481.46,0.00020547,2]
[368303260,1751104244411,-460.0,0.00020547,2]
[368303261,1751104244420,-279.01896734,0.00020547,2]
[368303262,1751104244429,-460.0,0.00020547,2]
[368303263,1751104244438,-853.9,0.00020547,2]
[368303264,1751104244447,-460.0,0.00020547,2]
[368303265,1751104244456,-460.0,0.00020547,2]
[368303266,1751104244466,-1919.85,0.00020547,2]
[368303267,1751104244475,-516.71,0.00020547,2]
[368303268,1751104244484,-727.6,0.00020547,2]
[368303269,1751104244494,-2052.3,0.00020547,2]
[368303270,1751104244503,-551.56,0.00020547,2]
[368303271,1751104244512,-460.0,0.00020547,2]
[368303272,1751104244522,-1731.5,0.00020547,2]
[368303273,1751104244531,-460.0,0.00020547,2]
[368303274,1751104244541,-460.0,0.00020547,2]
[368303275,1751104244550,-325.19851885,0.00020547,2]
[368303276,1751104244560,-460.0,0.00020547,2]
[368303277,1751104244569,-460.0,0.00020547,2]
[368303278,1751104244578,-460.0,0.00020547,2]
[368303279,1751104244587,-460.0,0.00020547,2]
[368303280,1751104244597,-460.0,0.00020547,2]
[368303281,1751104244606,-2205.55,0.00020547,2]
[368303282,1751104244616,-460.0,0.00020547,2]
[368303283,1751104244625,-589.67,0.00020547,2]
[368303284,1751104244635,-817.34,0.00020547,2]
[368303285,1751104244645,-2719.66,0.00020547,2]
[368303286,1751104244654,-460.0,0.00020547,2]
[368303287,1751104244772,-460.0,0.00020547,2]
[368303288,1751104244784,-474.0,0.00020547,2]
[368303289,1751104244794,-1742.15,0.00020547,2]
[368303290,1751104244804,-1538.5,0.00020547,2]
[368303291,1751104244813,-460.0,0.00020547,2]
[368303292,1751104244823,-460.0,0.00020547,2]
[368303293,1751104244832,-3171.69,0.00020547,2]
[368303294,1751104244841,-1284.62,0.00020547,2]
[368303295,1751104244851,-460.0,0.00020547,2]
[368303296,1751104244860,-460.0,0.00020547,2]
[368303297,1751104244869,-460.0,0.00020547,2]
[368303298,1751104244879,-460.0,0.00020547,2]
[368303299,1751104244888,-841.85,0.00020547,2]
[368303300,1751104244898,-3929.08,0.00020547,2]
[368303301,1751104244907,-460.0,0.00020547,2]
[368303302,1751104244916,-859.76,0.00020547,2]
[368303303,1751104244925,-460.0,0.00020547,2]
[368303304,1751104244935,-1249.38,0.00020547,2]
[368303305,1751104244945,-1398.58,0.00020547,2]
[368303306,1751104244954,-460.0,0.00020547,2]
[368303307,1751104244964,-1240.77,0.00020547,2]
[368303308,1751104244974,-460.0,0.00020547,2]
[368303309,1751104244984,-1289.3,0.00020547,2]
[368303310,1751104244995,-767.03,0.00020547,2]
[368303311,1751104245006,-1000.0,0.00020581,2]
[368303312,1751104245016,-500.0,0.00020582,2]
[368303313,1751104245026,-175.04864089,0.00020582,2]
[368303314,1751104245035,-666.0,0.00020582,2]
[368303315,1751104245046,-207.4,0.00020582,2]
[368303316,1751104245056,-5000.0,0.00020582,2]
[368303317,1751104245066,-500.0,0.00020582,2]
[368303318,1751104245076,-500.0,0.00020582,2]
[368303319,1751104245086,-500.0,0.00020582,2]
[368303320,1751104245097,-500.0,0.00020582,2]
[368303321,1751104245108,-500.0,0.00020582,2]
[368303322,1751104245118,-500.0,0.00020582,2]
[368303323,1751104245128,-500.0,0.00020582,2]
[368303324,1751104245138,-500.0,0.00020582,2]
[368303325,1751104245148,-500.0,0.00020582,2]
[368303326,1751104245158,-500.0,0.00020582,2]
[368303327,1751104245167,-500.0,0.00020582,2]
[368303328,1751104245177,-500.0,0.00020582,2]
[368303329,1751104245187,-500.0,0.00020582,2]
[368303330,1751104245197,-500.0,0.00020582,2]
[368303331,1751104245207,-500.0,0.00020582,2]
[368303332,1751104245217,-500.0,0.00020582,2]
[368303333,1751104245227,-500.0,0.00020582,2]
[368303334,1751104245236,-500.0,0.00020582,2]
[368303335,1751104245246,-25000.0,0.00020582,2]
[368303336,1751104245258,-443.30882593,0.00020594,2]
[368303337,1751104245268,-3418.08,0.000206,2]
[368303338,1751104245277,-1000.0,0.00020613,2]
[368303339,1751104245287,-690.642,0.00020637,2]
[368303340,1751104245296,-454.028,0.00020652,2]
[368303341,1751104245305,-716.195754,0.00020692,2]
[368303342,1751104245315,-7889.39496715,0.00020728,3]
[368303343,1751104245324,-742.6949969,0.00020747,2]
[368303344,1751104245333,-770.17471178,0.00020802,2]
[368303345,1751104245343,-460.0,0.00020821,2]
[368303346,1751104245352,-460.0,0.00020821,2]
[368303347,1751104245361,-460.0,0.00020821,2]
[368303348,1751104245370,-460.0,0.00020821,2]
[368303349,1751104245379,-460.0,0.00020821,2]
[368303350,1751104245389,-644.09,0.00020821,2]
[368303351,1751104245398,-460.0,0.00020821,2]
[368303352,1751104245407,-460.0,0.00020821,2]
[368303353,1751104245417,-460.0,0.00020821,2]
[368303354,1751104245426,-490.46,0.00020821,2]
[368303355,1751104245436,-1087.34,0.00020821,2]
[368303356,1751104245446,-1749.26,0.00020821,2]
[368303357,1751104245458,-481.46,0.00020821,2]
[368303358,1751104245467,-460.0,0.00020821,2]
[368303359,1751104245479,-460.0,0.00020821,2]
[368303360,1751104245489,-853.9,0.00020821,2]
[368303361,1751104245499,-460.0,0.00020821,2]
[368303362,1751104245510,-460.0,0.00020821,2]
[368303363,1751104245519,-1919.85,0.00020821,2]
[368303364,1751104245530,-516.71,0.00020821,2]
[368303365,1751104245539,-727.6,0.00020821,2]
[368303366,1751104245549,-2052.3,0.00020821,2]
[368303367,1751104245558,-551.56,0.00020821,2]
[368303368,1751104245567,-460.0,0.00020821,2]
[368303369,1751104245577,-1731.5,0.00020821,2]
[368303370,1751104245585,-460.0,0.00020821,2]
[368303371,1751104245595,-460.0,0.00020821,2]
[368303372,1751104245604,-460.0,0.00020821,2]
[368303373,1751104245614,-460.0,0.00020821,2]
[368303374,1751104245625,-460.0,0.00020821,2]
[368303375,1751104245636,-460.0,0.00020821,2]
[368303376,1751104245646,-460.0,0.00020821,2]
[368303377,1751104245655,-2205.55,0.00020821,2]
[368303378,1751104245666,-460.0,0.00020821,2]
[368303379,1751104245676,-589.67,0.00020821,2]
[368303380,1751104245685,-817.34,0.00020821,2]
[368303381,1751104245697,-2719.66,0.00020821,2]
[368303382,1751104245706,-460.0,0.00020821,2]
[368303383,1751104245716,-460.0,0.00020821,2]
[368303384,1751104245725,-474.0,0.00020821,2]
[368303385,1751104245734,-1742.15,0.00020821,2]
[368303386,1751104245744,-1538.5,0.00020821,2]
[368303387,1751104245753,-460.0,0.00020821,2]
[368303388,1751104245762,-460.0,0.00020821,2]
[368303389,1751104245771,-3171.69,0.00020821,2]
[368303390,1751104245780,-1284.62,0.00020821,2]
[368303391,1751104245790,-460.0,0.00020821,2]
[368303392,1751104245799,-460.0,0.00020821,2]
[368303393,1751104245809,-460.0,0.00020821,2]
[368303394,1751104245819,-460.0,0.00020821,2]
[368303395,1751104245829,-841.85,0.00020821,2]
[368303396,1751104245838,-3929.08,0.00020821,2]
[368303397,1751104245847,-460.0,0.00020821,2]
[368303398,1751104245857,-859.76,0.00020821,2]
[368303399,1751104245867,-460.0,0.00020821,2]
[368303400,1751104245878,-1249.38,0.00020821,2]
[368303401,1751104245888,-1398.58,0.00020821,2]
[368303402,1751104245900,-460.0,0.00020821,2]
[368303403,1751104245910,-1240.77,0.00020821,2]
[368303404,1751104245920,-460.0,0.00020821,2]
[368303405,1751104245930,-1289.3,0.00020821,2]
[368303406,1751104245939,-767.03,0.00020821,2]
[368303407,1751104245949,-334.14886311,0.00020857,2]
[368303408,1751104245959,-1500.0,0.00020896,2]
[368303409,1751104245969,-206.0,0.0002093,2]
[368303410,1751104245980,-7889.39496715,0.00020934,4]
[368303411,1751104245990,-1340.0,0.00020944,2]
[368303412,1751104245999,-500.0,0.00020958,15]
[368303413,1751104246009,-422.0,0.00021037,2]
[368303414,1751104246019,-460.0,0.00021095,2]
[368303415,1751104246028,-460.0,0.00021095,2]
[368303416,1751104246038,-306.82598111,0.00021095,2]
[368303417,1751104246048,-460.0,0.00021095,2]
[368303418,1751104246058,-460.0,0.00021095,2]
[368303419,1751104246067,-644.09,0.00021095,2]
[368303420,1751104246077,-460.0,0.00021095,2]
[368303421,1751104246087,-422.91590954,0.00021095,2]
[368303422,1751104246097,-460.0,0.00021095,2]
[368303423,1751104246108,-490.46,0.00021095,2]
[368303425,1751104246117,-1087.34,0.00021095,2]
[368303426,1751104246129,-1749.26,0.00021095,2]
[368303427,1751104246139,-481.46,0.00021095,2]
[368303428,1751104246150,-460.0,0.00021095,2]
[368303429,1751104246160,-460.0,0.00021095,2]
[368303430,1751104246171,-853.9,0.00021095,2]
[368303431,1751104246181,-460.0,0.00021095,2]
[368303432,1751104246190,-460.0,0.00021095,2]
[368303433,1751104246200,-1919.85,0.00021095,2]
[368303434,1751104246209,-516.71,0.00021095,2]
[368303435,1751104246219,-727.6,0.00021095,2]
[368303436,1751104246228,-2052.3,0.00021095,2]
[368303437,1751104246238,-551.56,0.00021095,2]
[368303438,1751104246249,-460.0,0.00021095,2]
[368303439,1751104246260,-1731.5,0.00021095,2]
[368303440,1751104246269,-460.0,0.00021095,2]
[368303441,1751104246279,-460.0,0.00021095,2]
[368303442,1751104246289,-460.0,0.00021095,2]
[368303443,1751104246299,-460.0,0.00021095,2]
[368303444,1751104246308,-460.0,0.00021095,2]
[368303445,1751104246318,-460.0,0.00021095,2]
[368303446,1751104246327,-460.0,0.00021095,2]
[368303447,1751104246336,-2205.55,0.00021095,2]
[368303448,1751104246345,-460.0,0.00021095,2]
[368303449,1751104246354,-589.67,0.00021095,2]
[368303450,1751104246364,-817.34,0.00021095,2]
[368303451,1751104246373,-2719.66,0.00021095,2]
[368303453,1751104246383,-460.0,0.00021095,2]
[368303455,1751104246392,-460.0,0.00021095,2]
[368303457,1751104246401,-474.0,0.00021095,2]
[368303459,1751104246410,-1742.15,0.00021095,2]
[368303461,1751104246420,-1538.5,0.00021095,2]
[368303462,1751104246431,-460.0,0.00021095,2]
[368303464,1751104246441,-460.0,0.00021095,2]
[368303466,1751104246450,-3171.69,0.00021095,2]